bitfinex-derivatives/quotes_ETHF0:USTF0_20250607
["timestamp","ask_amount","ask_price","bid_price","bid_amount"]
[1749313056171,0.79277,2521.3,2521.2,3.2078]
[1749313056371,0.7928,2521.2,2521.1,0.79283]
[1749313056680,0.79283,2521.1,2521.0,0.6637]
[1749313056877,0.79283,2521.1,2521.0,1.45656]
[1749313057174,0.79283,2521.1,2521.0,0.6637]
[1749313057975,0.79283,2521.1,2521.0,1.45656]
[1749313059876,0.79286,2521.0,2520.9,1.44143866]
[1749313060065,0.79286,2521.0,2520.9,0.64855866]
[1749313060679,0.79286,2521.0,2520.9,1.44144866]
[1749313061877,0.79286,2521.0,2520.9,0.64855866]
[1749313062177,0.79286,2521.0,2520.9,0.00395866]
[1749313063077,0.79286,2521.0,2520.9,0.79684866]
[1749313063478,0.79286,2521.0,2520.9,0.00395866]
[1749313066170,0.79286,2521.0,2520.9,1.48782866]
[1749313066381,0.79286,2521.0,2520.9,0.69495866]
[1749313066775,0.79286,2521.0,2520.9,1.48785866]
[1749313066979,0.79286,2521.0,2520.9,0.69495866]
[1749313067681,0.79286,2521.0,2520.9,0.00395866]
[1749313067881,2.17916,2521.0,2520.9,0.00395866]
[1749313068386,2.86426,2521.0,2520.9,0.00395866]
[1749313071285,2.86426,2521.0,2520.9,0.07287038]
[1749313072378,2.86426,2521.0,2520.9,0.00395866]
[1749313073687,13.22456676,2521.0,2520.1,3.94980311]
[1749313073989,0.7931,2520.3,2520.2,0.7931]
[1749313074186,0.79306,2520.4,2520.3,0.79306]
[1749313075392,0.0059499,2520.6,2520.2,3.2078]
[1749313075582,0.0059499,2520.6,2520.5,0.79302]
[1749313076388,0.0059499,2520.6,2520.5,2.12402]
[1749313077086,0.7989399,2520.6,2520.5,2.12402]
[1749313077292,0.0059499,2520.6,2520.5,2.12402]
[1749313077789,0.0059499,2520.6,2520.5,5.33182]
[1749313082795,1.98185,2521.4,2520.9,0.79288]
[1749313082796,3.2078,2521.3,2520.9,0.79288]
[1749313083096,5.49583,2521.1,2521.0,0.6527]
[1749313084896,0.79286,2521.0,2520.9,0.6805]
[1749313085098,0.79286,2521.0,2518.6,0.3965]
[1749313085099,7.17221,2521.0,2520.3,3.15667311]
[1749313085291,0.79308,2520.3,2520.2,0.6658]
[1749313085493,0.79308,2520.3,2520.2,1.4589]
[1749313086191,0.79308,2520.3,2520.2,2.1386]
[1749313087499,10.5253,2520.7,2520.2,2.1386]
[1749313087701,0.79308,2520.4,2520.2,3.5147]
[1749313087900,0.79303,2520.5,2520.2,2.7216]
[1749313088102,5.3351,2520.7,2520.2,2.7216]
[1749313088302,0.79308,2520.3,2520.2,1.3455]
[1749313089603,0.79308,2520.3,2520.2,0.6797]
[1749313091602,0.79308,2520.3,2520.2,1.47281]
[1749313093707,0.79307,2520.4,2520.3,0.79306]
[1749313094204,0.79304,2520.5,2520.4,0.79303]
[1749313094402,0.79301,2520.6,2520.5,0.79302]
[1749313094600,0.79302,2520.5,2520.4,0.6342]
[1749313096092,0.79302,2520.5,2520.4,1.42725]
[1749313096299,0.79302,2520.5,2520.4,0.6342]
[1749313097307,5.49201,2520.6,2520.5,0.79302]
[1749313097507,0.79302,2520.5,2520.4,1.42723]
[1749313097708,0.79302,2520.5,2520.4,0.6342]
[1749313098013,0.79308,2520.3,2520.2,0.6797]
[1749313098510,0.79311,2520.2,2520.1,0.0059499]
[1749313098699,6.80741,2520.2,2520.1,0.0059499]
[1749313099809,0.79311,2520.2,2520.1,0.0059499]
[1749313100009,5.49211,2520.2,2520.1,0.0059499]
[1749313100201,5.49211,2520.2,2520.1,0.7990999]
[1749313100402,0.79311,2520.2,2520.1,0.0059499]
[1749313102100,2.12831,2520.2,2520.1,0.0059499]
[1749313103304,2.12831,2520.2,2519.2,3.15667311]
[1749313103305,0.7934,2519.3,2519.2,3.15667311]
[1749313103616,7.9068,2519.5,2518.9,7.72507311]
[1749313103808,7.9068,2519.5,2519.2,0.79341]
[1749313104108,0.79339,2519.4,2519.3,0.79339]
[1749313104305,7.9068,2519.5,2519.1,0.0059499]
[1749313104506,0.79338,2519.4,2519.3,0.79338]
[1749313104812,0.0059499,2519.6,2519.5,0.79333]
[1749313105200,0.79335,2519.5,2519.4,0.79335]
[1749313105605,0.7992599,2519.6,2519.5,0.79334]
[1749313106414,0.79333,2519.5,2519.4,2.14096]
[1749313106909,0.79333,2519.5,2519.4,1.3476]
[1749313107708,0.79333,2519.5,2519.4,2.14097]
[1749313108013,0.79333,2519.5,2519.4,1.3476]
[1749313108314,0.7934,2519.3,2519.2,0.79341]
[1749313108516,0.7934,2519.3,2519.1,0.0059499]
[1749313108517,0.79343,2519.2,2519.1,0.7993899]
[1749313109103,0.79343,2519.2,2519.1,0.0059499]
[1749313109509,0.79343,2519.2,2519.1,0.7994099]
[1749313109709,0.79342,2519.3,2519.2,0.79342]
[1749313110107,0.79343,2519.2,2519.1,0.7993999]
[1749313110312,1.45777,2519.4,2519.3,0.7934]
[1749313110511,6.15777,2519.4,2519.3,0.7934]
[1749313110713,0.7934,2519.3,2519.2,0.79341]
[1749313111009,0.79341,2519.3,2519.2,0.79341]
[1749313111407,5.49339,2519.4,2519.3,0.7934]
[1749313111607,0.7934,2519.3,2519.1,0.0059499]
[1749313111803,5.49339,2519.4,2519.3,0.7934]
[1749313112414,5.49339,2519.4,2519.1,1.3406499]
[1749313112415,0.7934,2519.3,2519.2,0.79341]
[1749313112817,4.7,2519.4,2519.1,0.7993899]
[1749313113116,0.79343,2519.2,2519.1,0.7993899]
[1749313113618,0.79343,2519.2,2519.1,0.0059499]
[1749313114617,2.16293,2519.2,2519.1,0.0059499]
[1749313116311,5.37073,2519.2,2519.1,0.0059499]
[1749313116711,5.37073,2519.2,2519.1,0.7994099]
[1749313116712,4.00123,2519.2,2519.1,0.7994099]
[1749313116913,3.2078,2519.2,2519.1,0.7994099]
[1749313117217,4.701,2519.3,2519.2,0.79343]
[1749313117420,0.79337,2519.4,2519.3,0.7934]
[1749313118015,0.7934,2519.3,2519.2,1.51882172]
[1749313118217,0.7934,2519.3,2519.2,0.72541172]
[1749313118613,0.7934,2519.3,2519.2,0.06891172]
[1749313120419,0.7934,2519.3,2519.2,0.86234172]
[1749313120715,5.52539,2519.4,2519.3,0.7934]
[1749313121221,0.79335,2519.5,2519.4,0.79335]
[1749313121521,0.79337,2519.4,2519.3,0.79337]
[1749313122019,0.7934,2519.3,2519.2,1.40421172]
[1749313122318,0.7934,2519.3,2519.2,0.06891172]
[1749313123315,4.0012,2519.3,2519.2,0.06891172]
[1749313124219,0.79343,2519.2,2519.1,0.6379499]
[1749313125322,3.2078,2519.3,2519.2,0.79343]
[1749313125715,0.7934,2519.3,2519.2,0.79343]
[1749313126021,0.79339,2519.4,2519.3,0.79339]
[1749313126216,0.7934,2519.3,2519.2,0.79341]
[1749313126923,0.79343,2519.2,2519.1,0.6379499]
[1749313127316,4.733,2519.4,2519.2,0.79342]
[1749313127317,0.79342,2519.3,2519.2,0.79342]
[1749313127719,0.79343,2519.2,2519.1,0.6379499]
[1749313128016,0.79343,2519.2,2519.1,0.0059499]
[1749313128817,2.07813,2519.2,2519.1,0.0059499]
[1749313133933,5.52643,2519.2,2519.1,0.0059499]
[1749313134228,0.79343,2519.2,2519.1,0.7994199]
[1749313135232,0.79343,2519.2,2519.1,0.86833162]
[1749313135432,0.79341,2519.3,2519.2,0.7934]
[1749313135634,0.6403499,2519.6,2519.1,0.07486162]
[1749313135829,0.6403499,2519.6,2519.2,0.6284]
[1749313136035,0.0059499,2519.6,2519.5,0.79333]
[1749313138444,0.0059499,2519.6,2519.5,2.16803]
[1749313139939,0.7931,2520.3,2519.5,9.5825]
[1749313140243,0.6852,2520.7,2520.2,0.79311]
[1749313140442,0.6852,2520.7,2520.3,3.50608]
[1749313140747,0.79305,2520.4,2520.3,2.713]
[1749313140942,0.0059499,2520.6,2520.3,3.50607]
[1749313141144,0.79305,2520.4,2520.3,2.713]
[1749313142040,0.79305,2520.4,2520.3,3.50608]
[1749313143946,0.79304,2520.5,2520.4,0.79305]
[1749313144143,0.0059499,2520.6,2520.5,0.79302]
[1749313145250,0.79302,2520.5,2520.4,2.09383]
[1749313145751,0.7989499,2520.6,2520.5,0.79302]
[1749313146047,0.7989499,2520.6,2520.5,1.3946]
[1749313146245,0.7989499,2520.6,2520.3,1.3709]
[1749313146246,0.79305,2520.4,2520.3,1.3709]
[1749313147847,0.79305,2520.4,2520.3,2.16398]
[1749313148445,3.2137499,2520.6,2520.5,0.79302]
[1749313148645,0.0059499,2520.6,2520.5,0.79302]
[1749313148945,0.7989399,2520.6,2520.5,0.79302]
[1749313149150,0.0059499,2520.6,2520.5,0.79302]
[1749313150051,0.7989399,2520.6,2520.5,0.79302]
[1749313150654,0.0059499,2520.6,2520.5,0.79302]
[1749313151856,0.79302,2520.5,2520.4,2.17513]
[1749313152149,0.0059499,2520.6,2520.3,1.3709]
[1749313152150,0.79305,2520.4,2520.3,1.3709]
[1749313152345,0.79315,2520.1,2520.0,1.44337]
[1749313152755,7.4264,2520.5,2520.0,0.6502]
[1749313152948,0.79309,2520.3,2520.2,0.79309]
[1749313153349,1.341,2520.4,2520.0,0.6502]
[1749313153549,0.79309,2520.3,2520.2,0.79309]
[1749313153746,0.79313,2520.2,2520.1,0.79313]
[1749313153949,1.341,2520.4,2520.0,1.44335]
[1749313153950,0.79314,2520.1,2520.0,1.44335]
[1749313154149,1.341,2520.4,2520.0,0.6502]
[1749313154350,0.79309,2520.3,2520.2,0.79309]
[1749313154857,0.79313,2520.2,2520.1,0.79313]
[1749313155158,0.79313,2520.2,2520.0,0.6502]
[1749313155356,0.79312,2520.2,2520.1,0.79313]
[1749313155759,1.341,2520.4,2520.1,0.79312]
[1749313155960,0.79311,2520.2,2520.1,0.79312]
[1749313156153,0.79311,2520.3,2520.2,0.79311]
[1749313156454,1.341,2520.4,2520.0,0.6502]
[1749313156652,0.79314,2520.2,2520.1,0.79312]
[1749313156854,0.79321,2519.9,2519.8,0.6625]
[1749313157959,0.7932,2520.0,2519.9,0.79321]
[1749313158156,0.79318,2520.0,2519.9,0.79321]
[1749313158350,6.15876,2520.1,2520.0,0.79318]
[1749313158557,1.42476,2520.1,2519.8,0.6625]
[1749313158757,6.15876,2520.1,2520.0,0.79318]
[1749313159457,0.79321,2519.9,2519.8,0.6625]
[1749313160760,3.2078,2520.0,2519.7,0.79325]
[1749313160761,0.79324,2519.8,2519.7,0.79325]
[1749313161658,3.2078,2520.0,2519.6,1.3037]
[1749313161659,0.79327,2519.7,2519.6,0.6613]
[1749313161958,0.79337,2519.4,2519.3,0.676]
[1749313162157,0.79337,2519.4,2519.3,0.7934]
[1749313164061,0.79336,2519.5,2519.4,0.79336]
[1749313165360,0.79337,2519.4,2519.3,0.79337]
[1749313167266,0.79343,2519.2,2519.1,0.0059499]
[1749313167666,0.79343,2519.2,2519.1,0.7994099]
[1749313168461,0.79343,2519.2,2519.1,0.0059499]
[1749313168862,0.79343,2519.2,2519.1,0.7994099]
[1749313169464,0.79343,2519.2,2519.1,0.0059499]
[1749313169666,0.79343,2519.2,2519.1,0.7994099]
[1749313170063,0.79343,2519.2,2519.1,0.0059499]
[1749313170263,0.79343,2519.2,2519.1,0.7994099]
[1749313170767,1.49012,2519.3,2519.2,0.79343]
[1749313171268,0.79343,2519.2,2519.1,0.7993999]
[1749313172368,1.49012,2519.3,2519.2,0.79343]
[1749313174365,1.49012,2519.3,2519.1,0.0059499]
[1749313174366,0.79343,2519.2,2519.1,0.7993899]
[1749313174670,2.80122,2519.3,2519.2,0.79343]
[1749313174866,2.80122,2519.3,2519.2,0.86234172]
[1749313175566,3.2078,2519.4,2519.3,0.7934]
[1749313175771,4.735,2519.4,2519.3,0.7934]
[1749313176876,0.79334,2519.5,2519.4,0.79334]
[1749313177071,0.79337,2519.4,2519.3,0.79337]
[1749313177562,0.7934,2519.3,2519.2,0.86232172]
[1749313178375,0.79339,2519.4,2519.3,0.79339]
[1749313178875,0.79343,2519.2,2519.1,0.0059499]
[1749313179168,0.79343,2519.2,2519.1,0.7994099]
[1749313179374,1.48061,2519.3,2519.2,0.79343]
[1749313179572,0.79343,2519.2,2519.1,0.7993999]
[1749313180779,5.49943,2519.2,2519.1,0.0059499]
[1749313180967,5.49943,2519.2,2518.3,6.36447311]
[1749313180968,0.79357,2518.8,2518.3,6.36447311]
[1749313181172,0.79356,2518.8,2518.6,0.7936]
[1749313181774,0.79356,2518.8,2518.7,0.79359]
[1749313181968,1.48076,2518.8,2518.6,0.7936]
[1749313182167,1.48076,2518.8,2518.7,0.7936]
[1749313182370,0.6872,2518.8,2518.7,0.7936]
[1749313182571,3.2078,2518.9,2518.5,0.0059499]
[1749313182768,0.0059499,2519.0,2518.9,0.79352]
[1749313184771,0.0059499,2519.0,2518.9,2.76212]
[1749313187680,0.79353,2518.9,2518.8,0.79353]
[1749313188576,0.79353,2518.9,2518.8,0.79354]
[1749313188776,1.4453699,2519.0,2518.8,0.79353]
[1749313188974,0.79352,2518.9,2518.8,0.79353]
[1749313189479,1.4453699,2519.0,2518.7,0.6703]
[1749313189673,1.4453699,2519.0,2518.9,0.79352]
[1749313189978,1.4453699,2519.0,2518.9,0.86243172]
[1749313191282,1.4453699,2519.0,2518.9,0.06891172]
[1749313191481,1.4453699,2519.0,2518.9,0.86243172]
[1749313191682,1.4453699,2519.0,2518.9,0.06891172]
[1749313192973,6.4453699,2519.0,2518.9,0.06891172]
[1749313193177,3.4190699,2519.0,2518.9,0.06891172]
[1749313193883,1.4453399,2519.0,2518.9,0.06891172]
[1749313194276,1.4453399,2519.0,2518.9,0.86243172]
[1749313194476,1.4453399,2519.0,2518.9,0.06891172]
[1749313195584,1.4453399,2519.0,2518.9,0.86243172]
[1749313195783,0.0059499,2519.0,2518.9,0.86243172]
[1749313196185,0.7994399,2519.0,2518.9,0.06891172]
[1749313197385,0.7994399,2519.0,2518.9,0.86243172]
[1749313197779,4.0072399,2519.0,2518.9,0.06891172]
[1749313198175,5.3931399,2519.0,2518.9,0.06891172]
[1749313198986,4.0072399,2519.0,2518.9,0.86243172]
[1749313199286,4.0072399,2519.0,2518.9,0.06891172]
[1749313200185,0.79352,2518.9,2518.8,0.79354]
[1749313203191,0.79359,2518.7,2518.6,0.79362]
[1749313203387,0.79361,2518.7,2518.6,0.79361]
[1749313203595,0.79359,2518.7,2518.5,0.0059499]
[1749313203890,0.79359,2518.7,2518.6,0.79362]
[1749313204495,1.44857,2518.8,2518.7,0.79358]
[1749313204695,0.79355,2518.9,2518.8,0.79355]
[1749313205202,0.79355,2518.9,2518.8,0.86246172]
[1749313206001,0.79355,2518.9,2518.8,0.06891172]
[1749313206998,2.10355,2518.9,2518.8,0.06891172]
[1749313208809,7.10355,2518.9,2518.8,0.06891172]
[1749313210398,2.10355,2518.9,2518.8,0.06891172]
[1749313210800,3.0556528,2518.9,2518.8,0.06891172]
[1749313210995,3.05565264,2518.9,2518.8,0.06891172]
[1749313211405,3.05544312,2518.9,2518.8,0.06891172]
[1749313212307,8.05544312,2518.9,2518.8,0.06891172]
[1749313212806,8.05544312,2518.9,2518.8,1e-08]
[1749313213414,0.79362,2518.6,2518.5,0.0059499]
[1749313213706,5.56562,2518.6,2518.5,0.0059499]
[1749313214103,6.21202,2518.6,2518.5,0.0059499]
[1749313214504,7.53902,2518.6,2518.5,0.0059499]
[1749313219518,7.53902,2518.6,2518.5,0.07486162]
[1749313220115,6.21202,2518.6,2518.5,0.07486162]
[1749313220412,0.79362,2518.6,2518.5,0.86851162]
[1749313222715,0.79362,2518.6,2518.5,0.07486162]
[1749313223214,0.79362,2518.6,2518.5,0.74676162]
[1749313224222,0.79362,2518.6,2518.5,0.07486162]
[1749313225212,2.11302,2518.6,2518.5,0.07486162]
[1749313226319,0.79362,2518.6,2518.5,0.07486162]
[1749313230924,5.56662,2518.6,2518.5,0.86851162]
[1749313231423,0.79362,2518.6,2518.5,0.86851162]
[1749313231827,3.2078,2518.7,2518.6,0.79362]
[1749313232120,4.0072499,2519.0,2518.6,8.37825]
[1749313232327,4.0072499,2519.0,2518.9,0.79352]
[1749313233326,0.0059499,2519.0,2518.9,0.79352]
[1749313235731,0.0059499,2519.0,2518.9,0.86243172]
[1749313240635,4.752,2519.5,2519.4,0.79337]
[1749313240829,4.752,2519.5,2519.2,5.2494]
[1749313240830,0.79334,2519.5,2519.2,5.2494]
[1749313241132,0.79334,2519.5,2519.3,1.385]
[1749313241729,0.79337,2519.4,2519.3,1.385]
[1749313241929,0.7934,2519.3,2519.2,0.6566]
[1749313242333,1.4828,2519.3,2519.2,0.6566]
[1749313243033,0.79346,2519.1,2519.0,0.79348]
[1749313243435,0.79345,2519.2,2519.1,0.79345]
[1749313245337,0.79348,2519.1,2519.0,0.79347]
[1749313245835,0.79345,2519.2,2519.1,0.79345]
[1749313246134,1.48282,2519.3,2519.2,0.79343]
[1749313249435,0.79342,2519.3,2519.2,0.79343]
[1749313251040,0.79342,2519.3,2519.2,0.86234172]
[1749313251942,0.79342,2519.3,2519.2,0.79343]
[1749313252335,4.00118,2519.4,2519.3,0.7934]
[1749313253643,0.79342,2519.3,2519.2,0.79341]
[1749313253843,0.79343,2519.2,2519.1,0.6544]
[1749313254538,0.7935,2519.0,2518.9,3.2078]
[1749313254743,0.79348,2519.1,2519.0,0.79347]
[1749313255642,0.79355,2518.9,2518.8,0.79354]
[1749313255831,1.47991,2519.0,2518.9,0.7935]
[1749313258841,0.6864,2519.0,2518.9,0.7935]
[1749313259744,0.79355,2518.9,2518.8,0.79354]
[1749313260345,0.6864,2519.0,2518.6,7.00447311]
[1749313260546,1.3595,2518.9,2518.6,3.8478]
[1749313260748,0.79358,2518.8,2518.7,0.79356]
[1749313261941,2.15305,2518.9,2518.8,0.79356]
[1749313263048,0.79359,2518.8,2518.7,0.79356]
[1749313263248,0.79359,2518.7,2518.6,7.79808311]
[1749313263450,0.79359,2518.7,2518.6,3.8478]
[1749313264047,0.79362,2518.6,2518.5,0.0059499]
[1749313264251,1.43542,2518.6,2518.5,0.0059499]
[1749313265053,0.79352,2519.0,2518.9,0.7935]
[1749313265442,10.06438,2519.1,2519.0,0.79349]
[1749313265750,9.39508,2519.1,2519.0,0.79349]
[1749313266250,4.00128,2519.1,2519.0,0.79349]
[1749313266451,0.79348,2519.1,2519.0,0.79349]
[1749313266957,0.79349,2519.0,2518.9,1.468]
[1749313267753,0.79349,2519.0,2518.6,6.52631311]
[1749313267754,0.79359,2518.7,2518.6,3.15667311]
[1749313267944,0.79359,2518.7,2518.6,0.79362]
[1749313268355,0.79362,2518.6,2518.5,1.4620999]
[1749313268553,0.79362,2518.6,2518.5,0.6684499]
[1749313269451,0.79362,2518.6,2518.5,0.0059499]
[1749313269950,2.10402,2518.6,2518.5,0.0059499]
[1749313270550,2.79632,2518.6,2518.5,0.0059499]
[1749313270747,3.74488905,2518.6,2518.5,0.0059499]
[1749313271652,2.79632,2518.6,2518.5,0.0059499]
[1749313271959,3.74447348,2518.6,2518.5,0.0059499]
[1749313272458,2.79632,2518.6,2518.5,0.0059499]
[1749313276359,0.79381,2518.0,2517.9,0.6636]
[1749313276559,0.79381,2518.0,2517.9,1.3138]
[1749313277362,0.79381,2518.0,2517.9,2.10763]
[1749313277757,0.7938,2518.1,2518.0,0.79379]
[1749313278761,0.79381,2518.0,2517.9,2.10761]
[1749313278960,0.7938,2518.1,2518.0,0.79379]
[1749313280460,0.7997099,2518.2,2518.1,0.79378]
[1749313280661,0.0059499,2518.2,2518.1,0.79378]
[1749313281660,0.7996899,2518.2,2518.1,0.79378]
[1749313281862,0.0059499,2518.2,2518.1,0.79378]
[1749313285969,0.0059499,2518.2,2518.1,2.07538]
[1749313286467,3.2078,2518.7,2518.6,0.79362]
[1749313286664,4.731,2518.9,2518.8,0.79356]
[1749313286864,3.2078,2519.1,2519.0,0.79349]
[1749313287069,3.2078,2519.1,2518.7,1.98391]
[1749313287070,0.7935,2519.0,2518.6,2.5772]
[1749313287267,3.2078,2519.1,2518.7,1.2816]
[1749313287466,0.79356,2518.8,2518.7,2.07517]
[1749313288061,0.79358,2518.8,2518.7,0.79359]
[1749313288267,0.79359,2518.7,2518.6,1.2956]
[1749313288470,0.79359,2518.7,2518.6,2.08922]
[1749313288876,1.3485,2518.9,2518.6,2.08922]
[1749313288877,0.79358,2518.8,2518.7,0.79359]
[1749313289077,0.79353,2518.9,2518.8,0.79354]
[1749313290979,0.79358,2518.8,2518.7,0.79357]
[1749313291376,0.79359,2518.7,2518.6,3.459]
[1749313291685,0.79359,2518.7,2518.6,2.08922]
[1749313292984,0.79358,2518.8,2518.7,0.79358]
[1749313293385,0.79359,2518.7,2518.6,2.0892]
[1749313294281,0.79358,2518.8,2518.7,0.79357]
[1749313295282,0.79354,2518.9,2518.8,0.79353]
[1749313296086,0.79357,2518.8,2518.7,0.79356]
[1749313296878,0.79354,2518.9,2518.8,0.79352]
[1749313297078,5.52452,2519.0,2518.9,0.79352]
[1749313297480,0.79355,2518.9,2518.8,0.79354]
[1749313297876,4.731,2519.0,2518.6,2.71161172]
[1749313298087,0.79359,2518.7,2518.6,3.50522172]
[1749313298487,0.79358,2518.8,2518.7,0.79356]
[1749313299190,0.79359,2518.7,2518.6,3.50520172]
[1749313299492,0.79359,2518.7,2518.6,2.15810172]
[1749313303386,4.00138,2518.8,2518.7,0.79359]
[1749313303887,3.2078,2518.8,2518.7,0.79359]
[1749313304194,3.2078,2518.8,2518.7,2.06829]
[1749313304497,0.79353,2518.9,2518.8,0.79356]
[1749313306392,5.52451,2519.0,2518.9,0.79352]
[1749313306998,0.79351,2519.0,2518.9,0.79352]
[1749313307891,0.79356,2518.9,2518.8,0.79354]
[1749313309194,0.79351,2519.0,2518.9,0.79349]
[1749313312194,4.731,2519.1,2518.8,0.06891172]
[1749313312195,5.52447,2519.1,2519.0,0.79349]
[1749313312402,5.52446,2519.1,2519.0,0.79349]
[1749313314400,4.731,2519.1,2519.0,0.79349]
[1749313314702,4.731,2519.1,2519.0,2.12969]
[1749313315293,4.0071899,2519.2,2519.1,0.79346]
[1749313315499,0.7993899,2519.2,2519.1,1.44726]
[1749313315799,0.0059499,2519.2,2519.1,1.44726]
[1749313317503,0.0059499,2519.2,2519.1,2.79466]
[1749313323107,0.0059499,2519.2,2519.1,3.47486]
[1749313323405,7.9378,2519.6,2519.5,0.79334]
[1749313324403,8.7311,2519.6,2519.5,0.79334]
[1749313325607,5.5233,2519.6,2519.5,0.79334]
[1749313327897,0.7933,2519.6,2519.5,0.79334]
[1749313328102,0.79329,2519.7,2519.6,0.79328]
[1749313328409,24.0199499,2519.8,2519.3,1.2740499]
[1749313328606,0.79331,2519.7,2519.6,0.79329]
[1749313329310,0.0059499,2519.8,2519.7,0.79327]
[1749313329507,0.79329,2519.7,2519.6,0.79327]
[1749313330105,0.0059499,2519.8,2519.3,3.2575299]
[1749313330106,0.7991999,2519.8,2519.7,0.79327]
[1749313331212,0.79328,2519.7,2519.6,0.79327]
[1749313332713,0.0059499,2519.8,2519.4,1.2681]
[1749313332906,0.79333,2519.6,2519.5,0.79332]
[1749313334710,1.98319,2519.7,2519.3,0.0059499]
[1749313334915,0.79337,2519.4,2519.3,0.0059499]
[1749313336114,0.79337,2519.4,2519.3,0.7993499]
[1749313336314,0.79335,2519.5,2519.4,0.79337]
[1749313336613,1.47631,2519.6,2519.5,0.79333]
[1749313337918,0.79334,2519.5,2519.4,0.79334]
[1749313338818,4.4727499,2519.8,2519.7,0.79327]
[1749313339012,3.9072499,2519.8,2519.7,0.79327]
[1749313339413,0.6994499,2519.8,2519.7,0.79327]
[1749313339719,1.4926899,2519.8,2519.7,0.79327]
[1749313340416,0.6994499,2519.8,2519.7,0.79327]
[1749313340610,0.0059499,2519.8,2519.7,0.79327]
[1749313342917,0.0059499,2519.8,2519.7,2.16197]
[1749313343112,0.0059499,2519.8,2519.7,2.82297]
[1749313344423,0.0059499,2519.8,2519.7,1.45427]
[1749313346123,0.0059499,2519.8,2519.7,5.96924311]
[1749313346323,0.0059499,2519.8,2519.7,2.81257]
[1749313346516,0.0059499,2519.8,2519.7,25.70857]
[1749313347317,3.2078,2520.4,2520.3,0.79308]
[1749313347513,4.00085,2520.4,2520.3,0.79308]
[1749313347715,3.2078,2520.4,2520.3,0.79308]
[1749313347922,3.2078,2520.4,2520.1,1.3535]
[1749313348225,0.79314,2520.2,2520.1,0.79314]
[1749313348618,1.44324,2520.2,2520.1,0.79314]
[1749313349023,0.6501,2520.2,2519.9,0.6814]
[1749313349723,1.44324,2520.2,2520.1,0.79315]
[1749313351016,0.79316,2520.1,2520.0,0.79316]
[1749313351418,2.13236,2520.1,2520.0,0.79316]
[1749313354224,1.3392,2520.1,2520.0,0.79316]
[1749313354918,1.44324,2520.2,2520.1,0.79315]
[1749313355517,0.79318,2520.0,2519.9,0.79321]
[1749313355717,0.79321,2519.9,2519.8,3.8799]
[1749313356027,5.19078,2520.0,2519.6,0.79328]
[1749313356225,0.79327,2519.7,2519.6,0.79328]
[1749313356425,0.7933,2519.6,2519.5,1.43332]
[1749313356622,5.191,2519.7,2519.3,3.16668201]
[1749313356926,0.79337,2519.4,2519.3,0.0059499]
[1749313357317,1.45587,2519.4,2519.3,0.0059499]
[1749313357825,1.45587,2519.4,2519.3,0.7993499]
[1749313358725,1.45587,2519.4,2519.3,0.0059499]
[1749313359618,1.45587,2519.4,2519.3,0.7993499]
[1749313360614,1.45587,2519.4,2519.3,0.0059499]
[1749313362019,9.37067,2519.4,2519.3,0.0059499]
[1749313362723,10.85379,2519.4,2518.6,0.6727]
[1749313362923,3.2078,2519.0,2518.9,0.79352]
[1749313363229,3.2078,2519.0,2518.7,0.6693]
[1749313363230,3.2078,2519.0,2518.8,0.79353]
[1749313363524,0.79356,2518.8,2518.7,0.6693]
[1749313363729,0.79362,2518.6,2518.5,3.2137499]
[1749313364828,0.79362,2518.6,2518.5,4.0073999]
[1749313365126,0.79362,2518.6,2518.5,4.0073799]
[1749313365922,2.1839,2518.7,2518.6,0.79362]
[1749313366429,0.79362,2518.6,2518.5,4.0073899]
[1749313366630,2.08962,2518.6,2518.5,4.0073899]
[1749313366929,1.296,2518.6,2518.5,4.0073899]
[1749313368225,0.79358,2518.8,2518.7,0.79359]
[1749313368632,2.11388,2518.8,2518.7,0.79359]
[1749313369230,0.7936,2518.7,2518.6,0.7936]
[1749313370029,1.3203,2518.8,2518.5,3.28266162]
[1749313370030,2.11388,2518.8,2518.7,0.79359]
[1749313371833,0.7936,2518.7,2518.6,0.79359]
[1749313372035,1.3451,2518.7,2518.6,0.79359]
[1749313373239,2.13869,2518.7,2518.6,0.79359]
[1749313375940,5.348,2518.9,2518.8,0.79356]
[1749313376241,6.14152,2518.9,2518.8,0.79356]
[1749313377140,0.79358,2518.8,2518.7,0.79356]
[1749313379033,5.348,2518.9,2518.6,0.6397]
[1749313379238,6.14153,2518.9,2518.8,0.79356]
[1749313379437,0.79358,2518.8,2518.7,0.79356]
[1749313382048,0.79359,2518.7,2518.6,0.6397]
[1749313382248,0.79362,2518.6,2518.5,0.07486162]
[1749313383946,2.07242,2518.6,2518.5,0.07486162]
[1749313384150,0.79373,2518.3,2517.9,0.6979]
[1749313384351,1.2788,2518.6,2518.0,1.9845]
[1749313384546,5.50163,2518.6,2518.5,0.79362]
[1749313384947,5.50163,2518.6,2518.5,0.86253172]
[1749313385851,5.50163,2518.6,2518.5,0.06891172]
[1749313387249,6.79193,2518.6,2518.5,0.06891172]
[1749313389254,11.79193,2518.6,2518.5,0.06891172]
[1749313389449,12.47023,2518.6,2518.5,0.06891172]
[1749313389746,13.43442887,2518.6,2518.5,0.06891172]
[1749313392052,8.43442887,2518.6,2518.5,0.06891172]
[1749313394455,8.43440994,2518.6,2518.5,0.06891172]
[1749313394755,13.43440994,2518.6,2518.5,0.06891172]
[1749313396858,16.64220994,2518.6,2518.5,0.06891172]
[1749313397552,11.64220994,2518.6,2518.5,0.06891172]
[1749313397757,9.67360994,2518.6,2518.5,0.06891172]
[1749313398859,8.70943,2518.6,2518.5,0.06891172]
[1749313402361,9.67314915,2518.6,2518.5,0.06891172]
[1749313404166,0.79365,2518.5,2518.4,0.6321]
[1749313406265,5.50165,2518.5,2518.4,0.6321]
[1749313408363,3.2078,2518.6,2518.4,1.42576]